[Event "Late-Titled-Tuesday-Blitz-January-16-2024"]
[Site "Chess.com"]
[Date "2024.01.16"]
[Round "2"]
[White "Filipets"]
[Black "VerdeNotte"]
[Result "1/2-1/2"]
[WhiteElo "2565"]
[BlackElo "2871"]
[TimeControl "180+1"]
[EndTime "14:19:28 PST"]
[Termination "Game drawn - insufficient material"]

1. c4 {[%clk 0:03:00.9]} 1... g6 {[%clk 0:02:31.2]} 2. g3 {[%clk 0:02:59.9]}
2... Bg7 {[%clk 0:02:31.2]} 3. Bg2 {[%clk 0:03:00.3]} 3... c5 {[%clk 0:02:29.1]}
4. Nf3 {[%clk 0:03:00.4]} 4... Nc6 {[%clk 0:02:29.3]} 5. O-O {[%clk 0:03:00.1]}
5... d6 {[%clk 0:02:29]} 6. Nc3 {[%clk 0:02:59.2]} 6... Bf5 {[%clk 0:02:28.2]}
7. a3 {[%clk 0:02:56.8]} 7... Qd7 {[%clk 0:02:25.2]} 8. d3 {[%clk 0:02:52]} 8...
Bh3 {[%clk 0:02:24.6]} 9. Bd2 {[%clk 0:02:51]} 9... h5 {[%clk 0:02:21.4]} 10.
Bxh3 {[%clk 0:02:31.5]} 10... Qxh3 {[%clk 0:02:19.9]} 11. Nd5 {[%clk 0:02:32.2]}
11... Rc8 {[%clk 0:02:11.9]} 12. Bc3 {[%clk 0:02:23]} 12... Bxc3 {[%clk
0:02:11]} 13. bxc3 {[%clk 0:02:23.9]} 13... h4 {[%clk 0:02:10.1]} 14. e4 {[%clk
0:02:19.6]} 14... Ne5 {[%clk 0:01:42.9]} 15. Nxe5 {[%clk 0:02:13.4]} 15... dxe5
{[%clk 0:01:31.8]} 16. g4 {[%clk 0:02:13.7]} 16... Nf6 {[%clk 0:01:23.5]} 17.
Nxf6+ {[%clk 0:02:04.1]} 17... exf6 {[%clk 0:01:23.3]} 18. Re1 {[%clk
0:02:04.5]} 18... f5 {[%clk 0:01:17.1]} 19. exf5 {[%clk 0:02:03.3]} 19... gxf5
{[%clk 0:01:17.2]} 20. Rxe5+ {[%clk 0:02:03.8]} 20... Kf8 {[%clk 0:01:17.2]} 21.
Rxf5 {[%clk 0:02:04]} 21... Re8 {[%clk 0:00:53.5]} 22. Qf3 {[%clk 0:01:58.9]}
22... Qxf3 {[%clk 0:00:52.6]} 23. Rxf3 {[%clk 0:01:59.8]} 23... h3 {[%clk
0:00:52.7]} 24. Re3 {[%clk 0:01:59.4]} 24... Rh6 {[%clk 0:00:46.5]} 25. Rxe8+
{[%clk 0:01:50.8]} 25... Kxe8 {[%clk 0:00:47.4]} 26. f3 {[%clk 0:01:50.5]} 26...
Rd6 {[%clk 0:00:45.4]} 27. Rd1 {[%clk 0:01:16.3]} 27... Ra6 {[%clk 0:00:44.5]}
28. Kf2 {[%clk 0:01:16.5]} 28... Rxa3 {[%clk 0:00:44.1]} 29. Kg3 {[%clk
0:01:17.1]} 29... Rxc3 {[%clk 0:00:43.6]} 30. Kxh3 {[%clk 0:01:17.8]} 30... a6
{[%clk 0:00:30.8]} 31. Kg3 {[%clk 0:01:02.1]} 31... b5 {[%clk 0:00:30.7]} 32.
cxb5 {[%clk 0:01:03]} 32... axb5 {[%clk 0:00:31.4]} 33. h4 {[%clk 0:01:01.5]}
33... b4 {[%clk 0:00:31.3]} 34. Kf4 {[%clk 0:00:56.3]} 34... c4 {[%clk
0:00:24.6]} 35. Re1+ {[%clk 0:00:41.9]} 35... Kf8 {[%clk 0:00:23.9]} 36. dxc4
{[%clk 0:00:42.8]} 36... b3 {[%clk 0:00:19.8]} 37. Kg5 {[%clk 0:00:31.1]} 37...
Rxf3 {[%clk 0:00:18.9]} 38. Rb1 {[%clk 0:00:26.8]} 38... Kg7 {[%clk 0:00:17.9]}
39. h5 {[%clk 0:00:18.9]} 39... f6+ {[%clk 0:00:17.7]} 40. Kh4 {[%clk
0:00:19.5]} 40... Rc3 {[%clk 0:00:15.3]} 41. c5 {[%clk 0:00:19.9]} 41... Rxc5
{[%clk 0:00:10.3]} 42. Rxb3 {[%clk 0:00:19.6]} 42... Rc1 {[%clk 0:00:09.1]} 43.
Rb7+ {[%clk 0:00:15.1]} 43... Kg8 {[%clk 0:00:09.5]} 44. Kg3 {[%clk 0:00:13.3]}
44... Rg1+ {[%clk 0:00:09.2]} 45. Kf4 {[%clk 0:00:13.9]} 45... Rf1+ {[%clk
0:00:09.6]} 46. Ke4 {[%clk 0:00:14.6]} 46... Kf8 {[%clk 0:00:08.5]} 47. Rh7
{[%clk 0:00:13.7]} 47... Kg8 {[%clk 0:00:08.7]} 48. Rd7 {[%clk 0:00:14.4]} 48...
Kf8 {[%clk 0:00:09]} 49. Rd5 {[%clk 0:00:14.5]} 49... Kg7 {[%clk 0:00:08.9]} 50.
Rf5 {[%clk 0:00:15]} 50... Rg1 {[%clk 0:00:08.4]} 51. Kf4 {[%clk 0:00:15.6]}
51... Rf1+ {[%clk 0:00:08.7]} 52. Ke4 {[%clk 0:00:16.2]} 52... Re1+ {[%clk
0:00:08.7]} 53. Kf3 {[%clk 0:00:15]} 53... Rf1+ {[%clk 0:00:08.8]} 54. Kg3
{[%clk 0:00:15.7]} 54... Rg1+ {[%clk 0:00:07.5]} 55. Kh3 {[%clk 0:00:14.7]}
55... Kf7 {[%clk 0:00:06.6]} 56. Ra5 {[%clk 0:00:13.2]} 56... Kg7 {[%clk
0:00:05.9]} 57. Ra7+ {[%clk 0:00:13.8]} 57... Kg8 {[%clk 0:00:05.8]} 58. Ra4
{[%clk 0:00:12.2]} 58... Kg7 {[%clk 0:00:06]} 59. Kh2 {[%clk 0:00:12.8]} 59...
Re1 {[%clk 0:00:06]} 60. Kg2 {[%clk 0:00:12.9]} 60... Re3 {[%clk 0:00:05.5]} 61.
Kf2 {[%clk 0:00:12.8]} 61... Rb3 {[%clk 0:00:05.8]} 62. Re4 {[%clk 0:00:12.7]}
62... Kh6 {[%clk 0:00:05.6]} 63. Re3 {[%clk 0:00:10.9]} 63... Rb1 {[%clk
0:00:04.7]} 64. Rf3 {[%clk 0:00:08.3]} 64... Kg5 {[%clk 0:00:05]} 65. Kg3 {[%clk
0:00:06.9]} 65... Rg1+ {[%clk 0:00:05.1]} 66. Kh3 {[%clk 0:00:07.6]} 66... Rxg4
{[%clk 0:00:04]} 67. Rxf6 {[%clk 0:00:03.9]} 67... Rh4+ {[%clk 0:00:04.3]} 68.
Kg3 {[%clk 0:00:04.5]} 68... Rxh5 {[%clk 0:00:04.7]} 69. Rf4 {[%clk 0:00:04.9]}
69... Rh8 {[%clk 0:00:04]} 70. Rg4+ {[%clk 0:00:05]} 70... Kf5 {[%clk
0:00:04.5]} 71. Rf4+ {[%clk 0:00:04.7]} 71... Ke5 {[%clk 0:00:04.4]} 72. Kf3
{[%clk 0:00:05]} 72... Rh3+ {[%clk 0:00:04.2]} 73. Kg4 {[%clk 0:00:05.6]} 73...
Rh4+ {[%clk 0:00:04.9]} 74. Kxh4 {[%clk 0:00:06.1]} 74... Kxf4 {[%clk
0:00:05.8]} 1/2-1/2

[Event "Late-Titled-Tuesday-Blitz-January-16-2024"]
[Site "Chess.com"]
[Date "2024.01.16"]
[Round "2"]
[White "DonJuan_34"]
[Black "Rodalquilar"]
[Result "0-1"]
[WhiteElo "2397"]
[BlackElo "2738"]
[TimeControl "180+1"]
[EndTime "14:19:28 PST"]
[Termination "Rodalquilar won by checkmate"]

1. d4 {[%clk 0:02:57.5]} 1... d5 {[%clk 0:03:00.2]} 2. c4 {[%clk 0:02:57.6]}
2... e6 {[%clk 0:03:00.6]} 3. Nc3 {[%clk 0:02:57.5]} 3... a6 {[%clk 0:02:59]} 4.
e4 {[%clk 0:02:54.6]} 4... dxe4 {[%clk 0:02:58.6]} 5. Nxe4 {[%clk 0:02:54.3]}
5... Bb4+ {[%clk 0:02:58.9]} 6. Nc3 {[%clk 0:02:47.8]} 6... c5 {[%clk
0:02:58.7]} 7. Nf3 {[%clk 0:02:38.4]} 7... cxd4 {[%clk 0:02:55.5]} 8. Nxd4
{[%clk 0:02:36.4]} 8... Bd7 {[%clk 0:02:46.9]} 9. Be2 {[%clk 0:02:29.5]} 9...
Nc6 {[%clk 0:02:46.1]} 10. O-O {[%clk 0:02:24.7]} 10... Nf6 {[%clk 0:02:46.2]}
11. Bg5 {[%clk 0:02:09.2]} 11... h6 {[%clk 0:02:41.6]} 12. Bh4 {[%clk
0:02:08.4]} 12... Be7 {[%clk 0:02:38.6]} 13. Bf3 {[%clk 0:02:03.4]} 13... Rc8
{[%clk 0:02:37.8]} 14. Nxc6 {[%clk 0:01:23.1]} 14... Bxc6 {[%clk 0:02:37.9]} 15.
Qxd8+ {[%clk 0:01:21.8]} 15... Bxd8 {[%clk 0:02:38]} 16. Be2 {[%clk 0:00:43]}
16... Ba5 {[%clk 0:02:09]} 17. f3 {[%clk 0:00:33.7]} 17... Nd7 {[%clk
0:01:44.2]} 18. a3 {[%clk 0:00:30.7]} 18... Bxc3 {[%clk 0:01:35.8]} 19. bxc3
{[%clk 0:00:31.6]} 19... f6 {[%clk 0:01:29.8]} 20. Bf2 {[%clk 0:00:30.4]} 20...
Kf7 {[%clk 0:01:29.2]} 21. Rfd1 {[%clk 0:00:29.5]} 21... g5 {[%clk 0:01:27]} 22.
Rd6 {[%clk 0:00:28.8]} 22... Ne5 {[%clk 0:01:04.7]} 23. Bd4 {[%clk 0:00:22.9]}
23... Rhd8 {[%clk 0:00:55.9]} 24. Bxe5 {[%clk 0:00:22.6]} 24... fxe5 {[%clk
0:00:55.9]} 25. Rad1 {[%clk 0:00:22.1]} 25... Rxd6 {[%clk 0:00:56.2]} 26. Rxd6
{[%clk 0:00:22]} 26... Ke7 {[%clk 0:00:56.8]} 27. Rd2 {[%clk 0:00:20.7]} 27...
e4 {[%clk 0:00:56.2]} 28. Kf2 {[%clk 0:00:18.6]} 28... exf3 {[%clk 0:00:54.4]}
29. gxf3 {[%clk 0:00:18.8]} 29... Ba4 {[%clk 0:00:49.8]} 30. Rb2 {[%clk
0:00:17.9]} 30... Rc7 {[%clk 0:00:50]} 31. Ke3 {[%clk 0:00:17.9]} 31... Kd6
{[%clk 0:00:49.5]} 32. Bd3 {[%clk 0:00:17.7]} 32... Ke5 {[%clk 0:00:47.6]} 33.
Rb6 {[%clk 0:00:17.3]} 33... Bc6 {[%clk 0:00:47.4]} 34. Be4 {[%clk 0:00:17.1]}
34... Bxe4 {[%clk 0:00:46.6]} 35. fxe4 {[%clk 0:00:17.5]} 35... Rxc4 {[%clk
0:00:47]} 36. Rxb7 {[%clk 0:00:17.9]} 36... Rxc3+ {[%clk 0:00:46.6]} 37. Kf2
{[%clk 0:00:18.5]} 37... Rxa3 {[%clk 0:00:46.1]} 38. Rh7 {[%clk 0:00:18.9]}
38... Kxe4 {[%clk 0:00:46.5]} 39. Rxh6 {[%clk 0:00:18.8]} 39... e5 {[%clk
0:00:47.1]} 40. h4 {[%clk 0:00:18.8]} 40... gxh4 {[%clk 0:00:36.5]} 41. Rxh4+
{[%clk 0:00:18.9]} 41... Kd5 {[%clk 0:00:37.1]} 42. Ke2 {[%clk 0:00:19]} 42...
a5 {[%clk 0:00:35.1]} 43. Rh8 {[%clk 0:00:18.9]} 43... Kd4 {[%clk 0:00:34.2]}
44. Rd8+ {[%clk 0:00:18.1]} 44... Ke4 {[%clk 0:00:34.6]} 45. Rh8 {[%clk
0:00:17.3]} 45... Ra2+ {[%clk 0:00:34.6]} 46. Kd1 {[%clk 0:00:17.2]} 46... Kd4
{[%clk 0:00:35]} 47. Rd8+ {[%clk 0:00:16.8]} 47... Ke3 {[%clk 0:00:35.5]} 48.
Rh8 {[%clk 0:00:16.2]} 48... e4 {[%clk 0:00:35.9]} 49. Rh3+ {[%clk 0:00:15.6]}
49... Kd4 {[%clk 0:00:36.3]} 50. Rg3 {[%clk 0:00:15.7]} 50... a4 {[%clk
0:00:36.7]} 51. Ke1 {[%clk 0:00:15.8]} 51... e3 {[%clk 0:00:16.5]} 52. Rg8
{[%clk 0:00:15.4]} 52... Kc4 {[%clk 0:00:04.9]} 53. Rc8+ {[%clk 0:00:15.3]}
53... Kd3 {[%clk 0:00:05.3]} 54. Rd8+ {[%clk 0:00:15.6]} 54... Kc3 {[%clk
0:00:05.9]} 55. Re8 {[%clk 0:00:15.4]} 55... e2 {[%clk 0:00:06.5]} 56. Re3+
{[%clk 0:00:13.8]} 56... Kd4 {[%clk 0:00:04.9]} 57. Re8 {[%clk 0:00:13.8]} 57...
Kc4 {[%clk 0:00:04.3]} 58. Rc8+ {[%clk 0:00:13.8]} 58... Kb3 {[%clk 0:00:04.8]}
59. Rb8+ {[%clk 0:00:13.5]} 59... Ka3 {[%clk 0:00:05.4]} 60. Re8 {[%clk
0:00:13.6]} 60... Rb2 {[%clk 0:00:05.6]} 61. Re3+ {[%clk 0:00:11.9]} 61... Ka2
{[%clk 0:00:05.7]} 62. Re5 {[%clk 0:00:12.3]} 62... a3 {[%clk 0:00:06.3]} 63.
Ra5 {[%clk 0:00:13]} 63... Rc2 {[%clk 0:00:06.1]} 64. Ra7 {[%clk 0:00:12.6]}
64... Kb2 {[%clk 0:00:06.4]} 65. Rb7+ {[%clk 0:00:12.8]} 65... Ka1 {[%clk
0:00:06.8]} 66. Ra7 {[%clk 0:00:12.8]} 66... a2 {[%clk 0:00:07.4]} 67. Rb7
{[%clk 0:00:13.1]} 67... Rb2 {[%clk 0:00:07.9]} 68. Rc7 {[%clk 0:00:12.7]} 68...
Kb1 {[%clk 0:00:07.9]} 69. Rc4 {[%clk 0:00:02.1]} 69... a1=Q {[%clk 0:00:07.4]}
70. Kf2 {[%clk 0:00:02.6]} 70... e1=Q+ {[%clk 0:00:06.3]} 71. Kxe1 {[%clk
0:00:02.8]} 71... Qa5+ {[%clk 0:00:06.5]} 72. Kd1 {[%clk 0:00:02.5]} 72... Qd5+
{[%clk 0:00:06.4]} 73. Rd4 {[%clk 0:00:01.6]} 73... Qh1# {[%clk 0:00:06]} 0-1

[Event "Late-Titled-Tuesday-Blitz-January-16-2024"]
[Site "Chess.com"]
[Date "2024.01.16"]
[Round "2"]
[White "bazar-wokzal"]
[Black "dmitrijiIM"]
[Result "0-1"]
[WhiteElo "2558"]
[BlackElo "2890"]
[TimeControl "180+1"]
[EndTime "14:19:42 PST"]
[Termination "dmitrijiIM won by resignation"]

1. e4 {[%clk 0:02:56.8]} 1... e5 {[%clk 0:02:59.9]} 2. Bc4 {[%clk 0:02:56]} 2...
Nf6 {[%clk 0:02:58.9]} 3. d3 {[%clk 0:02:56]} 3... Bc5 {[%clk 0:02:58.5]} 4. Nf3
{[%clk 0:02:56.3]} 4... d6 {[%clk 0:02:58]} 5. Bg5 {[%clk 0:02:56]} 5... h6
{[%clk 0:02:57.3]} 6. Bh4 {[%clk 0:02:55.8]} 6... Nc6 {[%clk 0:02:56.9]} 7. Nc3
{[%clk 0:02:55.4]} 7... Be6 {[%clk 0:02:38.4]} 8. Nd5 {[%clk 0:02:51.3]} 8...
Bxd5 {[%clk 0:02:34]} 9. exd5 {[%clk 0:02:51.2]} 9... Nd4 {[%clk 0:02:26.1]} 10.
Nxd4 {[%clk 0:02:49]} 10... Bxd4 {[%clk 0:02:27]} 11. c3 {[%clk 0:02:48.3]}
11... Bb6 {[%clk 0:02:26.7]} 12. Bb5+ {[%clk 0:02:48.1]} 12... Kf8 {[%clk
0:02:23.8]} 13. Qf3 {[%clk 0:02:44.7]} 13... g5 {[%clk 0:01:36.2]} 14. Bg3
{[%clk 0:02:44.4]} 14... Kg7 {[%clk 0:01:34.7]} 15. O-O-O {[%clk 0:02:36.1]}
15... g4 {[%clk 0:01:27.4]} 16. Qf5 {[%clk 0:02:35.5]} 16... Qc8 {[%clk
0:01:27.5]} 17. Qxc8 {[%clk 0:02:31.9]} 17... Raxc8 {[%clk 0:01:28.4]} 18. Bc4
{[%clk 0:02:31]} 18... Nh5 {[%clk 0:01:23]} 19. f3 {[%clk 0:02:20.5]} 19... Nxg3
{[%clk 0:01:18.2]} 20. hxg3 {[%clk 0:02:20.5]} 20... f5 {[%clk 0:01:08.2]} 21.
fxg4 {[%clk 0:02:17.6]} 21... fxg4 {[%clk 0:01:09.1]} 22. Rdf1 {[%clk
0:02:17.5]} 22... Be3+ {[%clk 0:01:05.6]} 23. Kd1 {[%clk 0:02:17.4]} 23... Rcf8
{[%clk 0:01:04.8]} 24. Ke2 {[%clk 0:02:17.4]} 24... Bg5 {[%clk 0:01:04.8]} 25.
Bb3 {[%clk 0:02:12.3]} 25... Rxf1 {[%clk 0:00:58.2]} 26. Rxf1 {[%clk 0:02:11.7]}
26... Bf6 {[%clk 0:00:53]} 27. Ba4 {[%clk 0:02:08.1]} 27... Rd8 {[%clk
0:00:49.9]} 28. Ke3 {[%clk 0:02:03.9]} 28... a6 {[%clk 0:00:47.2]} 29. c4 {[%clk
0:02:03.1]} 29... Kg6 {[%clk 0:00:42.3]} 30. Ke4 {[%clk 0:02:03.3]} 30... h5
{[%clk 0:00:41.8]} 31. b4 {[%clk 0:02:01.1]} 31... Rf8 {[%clk 0:00:28.8]} 32.
Bd7 {[%clk 0:01:58.4]} 32... b6 {[%clk 0:00:27.6]} 33. a4 {[%clk 0:01:51.1]}
33... a5 {[%clk 0:00:24.9]} 34. bxa5 {[%clk 0:00:59]} 34... bxa5 {[%clk
0:00:25.8]} 35. Rb1 {[%clk 0:00:58.6]} 35... h4 {[%clk 0:00:25.7]} 36. gxh4
{[%clk 0:00:58.1]} 36... Bxh4 {[%clk 0:00:26.6]} 37. Ke3 {[%clk 0:00:44.1]}
37... Rf4 {[%clk 0:00:22.9]} 38. Rb7 {[%clk 0:00:40.5]} 38... Bf2+ {[%clk
0:00:22.9]} 39. Ke2 {[%clk 0:00:40.4]} 39... Bb6 {[%clk 0:00:23.8]} 40. g3
{[%clk 0:00:38.9]} 40... Rf2+ {[%clk 0:00:23.3]} 41. Ke1 {[%clk 0:00:39.4]}
41... Rg2 {[%clk 0:00:16.7]} 42. Bxg4 {[%clk 0:00:38.6]} 42... Rxg3 {[%clk
0:00:17.1]} 43. Be2 {[%clk 0:00:37.2]} 43... Rg1+ {[%clk 0:00:16.9]} 44. Kd2
{[%clk 0:00:37]} 44... Ra1 {[%clk 0:00:17.8]} 45. Bd1 {[%clk 0:00:32.7]} 45...
Ra2+ {[%clk 0:00:17.9]} 46. Bc2 {[%clk 0:00:32.7]} 46... Kf6 {[%clk 0:00:13.6]}
47. Rb8 {[%clk 0:00:32.4]} 47... Ra1 {[%clk 0:00:12.2]} 48. Rf8+ {[%clk
0:00:31.7]} 48... Ke7 {[%clk 0:00:12.5]} 49. Rh8 {[%clk 0:00:31.4]} 49... Kf6
{[%clk 0:00:11.7]} 50. Rh7 {[%clk 0:00:30.7]} 50... Kg5 {[%clk 0:00:11.7]} 51.
Rf7 {[%clk 0:00:30.5]} 51... Kg6 {[%clk 0:00:11.3]} 52. Rf3 {[%clk 0:00:27.7]}
52... Bd4 {[%clk 0:00:09.6]} 53. Bd1 {[%clk 0:00:23.7]} 53... Ra2+ {[%clk
0:00:09.2]} 54. Bc2 {[%clk 0:00:23.9]} 54... Kg7 {[%clk 0:00:09.9]} 55. Rf1
{[%clk 0:00:20.3]} 55... Ra3 {[%clk 0:00:08.9]} 56. Rd1 {[%clk 0:00:18]} 56...
Bc3+ {[%clk 0:00:08.4]} 57. Ke3 {[%clk 0:00:17]} 57... Ra2 {[%clk 0:00:08.1]}
58. Rc1 {[%clk 0:00:16.5]} 58... Kf6 {[%clk 0:00:07.2]} 59. Rf1+ {[%clk
0:00:14]} 59... Ke7 {[%clk 0:00:07.1]} 60. Rc1 {[%clk 0:00:13.7]} 60... Rb2
{[%clk 0:00:06.6]} 61. Ke4 {[%clk 0:00:13.2]} 61... Bd2 {[%clk 0:00:06.8]} 62.
Rh1 {[%clk 0:00:09]} 62... Rxc2 {[%clk 0:00:07]} 63. Rh7+ {[%clk 0:00:09.2]}
63... Kd8 {[%clk 0:00:07.4]} 64. Kf5 {[%clk 0:00:09.7]} 64... Kc8 {[%clk
0:00:06.8]} 65. Ke6 {[%clk 0:00:10.1]} 65... Kb7 {[%clk 0:00:07.2]} 66. Rh2
{[%clk 0:00:09]} 66... Rb2 {[%clk 0:00:06.5]} 67. Rg2 {[%clk 0:00:08.8]} 67...
Bc3 {[%clk 0:00:06.6]} 68. Rg3 {[%clk 0:00:09.4]} 68... Bd4 {[%clk 0:00:06.7]}
69. Kd7 {[%clk 0:00:09.5]} 69... Rb4 {[%clk 0:00:06.7]} 70. Rg1 {[%clk
0:00:08.8]} 70... Rxa4 {[%clk 0:00:06.7]} 71. Rb1+ {[%clk 0:00:08.7]} 71... Rb4
{[%clk 0:00:07.1]} 72. Rh1 {[%clk 0:00:08.7]} 72... a4 {[%clk 0:00:07.5]} 73. c5
{[%clk 0:00:08.7]} 73... Bxc5 {[%clk 0:00:07.6]} 74. Rh8 {[%clk 0:00:08.1]}
74... a3 {[%clk 0:00:07.6]} 75. Rc8 {[%clk 0:00:08.3]} 75... Bb6 {[%clk
0:00:08]} 0-1

[Event "Late-Titled-Tuesday-Blitz-January-16-2024"]
[Site "Chess.com"]
[Date "2024.01.16"]
[Round "3"]
[White "FrankDux44"]
[Black "orestn"]
[Result "1-0"]
[WhiteElo "2615"]
[BlackElo "2435"]
[TimeControl "180+1"]
[EndTime "14:21:56 PST"]
[Termination "FrankDux44 won by resignation"]

1. e4 {[%clk 0:03:00.9]} 1... e5 {[%clk 0:02:59.3]} 2. Bc4 {[%clk 0:02:58.6]}
2... Nf6 {[%clk 0:02:57.9]} 3. d3 {[%clk 0:02:58.9]} 3... Be7 {[%clk 0:02:54.7]}
4. Nc3 {[%clk 0:02:57.5]} 4... c6 {[%clk 0:02:54.4]} 5. Nf3 {[%clk 0:02:55.1]}
5... d6 {[%clk 0:02:54.9]} 6. h3 {[%clk 0:02:53.5]} 6... b5 {[%clk 0:02:54.7]}
7. Bb3 {[%clk 0:02:53.4]} 7... a5 {[%clk 0:02:55.2]} 8. a4 {[%clk 0:02:53.7]}
8... b4 {[%clk 0:02:55]} 9. Ne2 {[%clk 0:02:54.3]} 9... Nbd7 {[%clk 0:02:53.7]}
10. Ng3 {[%clk 0:02:54.9]} 10... Nc5 {[%clk 0:02:53.3]} 11. Bc4 {[%clk
0:02:47.4]} 11... O-O {[%clk 0:02:41.7]} 12. O-O {[%clk 0:02:46.3]} 12... d5
{[%clk 0:02:42]} 13. exd5 {[%clk 0:02:44.8]} 13... cxd5 {[%clk 0:02:42]} 14. Bb5
{[%clk 0:02:45.7]} 14... e4 {[%clk 0:02:39.7]} 15. Nd4 {[%clk 0:02:41.9]} 15...
Bd7 {[%clk 0:02:30.1]} 16. Ngf5 {[%clk 0:02:38.6]} 16... Bxb5 {[%clk 0:02:23.4]}
17. axb5 {[%clk 0:02:38]} 17... exd3 {[%clk 0:02:23.9]} 18. Nc6 {[%clk
0:02:35.8]} 1-0

[Event "Late-Titled-Tuesday-Blitz-January-16-2024"]
[Site "Chess.com"]
[Date "2024.01.16"]
[Round "3"]
[White "DishonorOnYourCow"]
[Black "DraningWaterHi"]
[Result "1-0"]
[WhiteElo "2554"]
[BlackElo "2217"]
[TimeControl "180+1"]
[EndTime "14:22:18 PST"]
[Termination "DishonorOnYourCow won by resignation"]

1. d4 {[%clk 0:02:55]} 1... Nf6 {[%clk 0:02:59.7]} 2. c4 {[%clk 0:02:55.1]} 2...
g6 {[%clk 0:02:59.9]} 3. Nc3 {[%clk 0:02:55.2]} 3... Bg7 {[%clk 0:03:00.5]} 4.
e4 {[%clk 0:02:55.8]} 4... d6 {[%clk 0:03:01.2]} 5. f4 {[%clk 0:02:56.3]} 5...
O-O {[%clk 0:03:01.8]} 6. Nf3 {[%clk 0:02:56.9]} 6... c5 {[%clk 0:03:01.9]} 7.
d5 {[%clk 0:02:57.5]} 7... e6 {[%clk 0:03:00.8]} 8. dxe6 {[%clk 0:02:58.4]} 8...
fxe6 {[%clk 0:02:59.1]} 9. Bd3 {[%clk 0:02:58.6]} 9... Nc6 {[%clk 0:02:58.7]}
10. O-O {[%clk 0:02:59.2]} 10... b6 {[%clk 0:02:57.9]} 11. Bd2 {[%clk
0:02:56.4]} 11... Bb7 {[%clk 0:02:57.9]} 12. f5 {[%clk 0:02:49.3]} 12... gxf5
{[%clk 0:02:58]} 13. exf5 {[%clk 0:02:49.3]} 13... e5 {[%clk 0:02:58.9]} 14. Bg5
{[%clk 0:02:47.5]} 14... Ne7 {[%clk 0:02:55.7]} 15. Bxf6 {[%clk 0:02:35.2]}
15... Bxf6 {[%clk 0:02:55]} 16. Be4 {[%clk 0:02:35.7]} 16... Bxe4 {[%clk
0:02:50.1]} 17. Nxe4 {[%clk 0:02:36.6]} 17... d5 {[%clk 0:02:50.4]} 18. cxd5
{[%clk 0:02:26.2]} 18... Nxd5 {[%clk 0:02:48.7]} 19. Nxf6+ {[%clk 0:02:19.6]}
19... Rxf6 {[%clk 0:02:48.1]} 20. Nxe5 {[%clk 0:02:19.3]} 20... Ne3 {[%clk
0:02:46.4]} 21. Qb3+ {[%clk 0:02:10.6]} 21... Qd5 {[%clk 0:02:34.5]} 22. Qxe3
{[%clk 0:02:08.9]} 1-0

[Event "Late-Titled-Tuesday-Blitz-January-16-2024"]
[Site "Chess.com"]
[Date "2024.01.16"]
[Round "3"]
[White "Airquake"]
[Black "LikeWater"]
[Result "0-1"]
[WhiteElo "2522"]
[BlackElo "2799"]
[TimeControl "180+1"]
[EndTime "14:23:08 PST"]
[Termination "LikeWater won by resignation"]

1. g3 {[%clk 0:03:00.9]} 1... e6 {[%clk 0:03:00.9]} 2. Bg2 {[%clk 0:03:01.5]}
2... g6 {[%clk 0:03:00.3]} 3. Nf3 {[%clk 0:03:01.9]} 3... Bg7 {[%clk 0:03:01.2]}
4. O-O {[%clk 0:03:02.3]} 4... f5 {[%clk 0:03:01.6]} 5. d4 {[%clk 0:03:02.7]}
5... Nf6 {[%clk 0:03:02]} 6. c4 {[%clk 0:03:03.6]} 6... O-O {[%clk 0:03:02]} 7.
Nc3 {[%clk 0:03:04.4]} 7... d6 {[%clk 0:03:02.4]} 8. Re1 {[%clk 0:03:04]} 8...
Nc6 {[%clk 0:03:01.1]} 9. e4 {[%clk 0:03:03.9]} 9... Nxe4 {[%clk 0:02:53.8]} 10.
Nxe4 {[%clk 0:03:04.8]} 10... fxe4 {[%clk 0:02:54.7]} 11. Rxe4 {[%clk
0:03:05.7]} 11... d5 {[%clk 0:02:55.2]} 12. cxd5 {[%clk 0:03:06.4]} 12... exd5
{[%clk 0:02:55.3]} 13. Re1 {[%clk 0:02:41.4]} 13... Bg4 {[%clk 0:02:53]} 14. Qb3
{[%clk 0:02:41.5]} 14... Bxf3 {[%clk 0:02:47.4]} 15. Bxf3 {[%clk 0:02:41.6]}
15... Nxd4 {[%clk 0:02:47.6]} 16. Bxd5+ {[%clk 0:02:34.4]} 16... Kh8 {[%clk
0:02:47.4]} 17. Qc4 {[%clk 0:02:28]} 17... b5 {[%clk 0:02:45.5]} 18. Qc5 {[%clk
0:02:27.8]} 18... Rf5 {[%clk 0:02:45.9]} 19. Bh6 {[%clk 0:01:49.5]} 19... Rxd5
{[%clk 0:02:24.1]} 20. Bxg7+ {[%clk 0:01:49.2]} 20... Kxg7 {[%clk 0:02:25]} 21.
Re7+ {[%clk 0:01:39.9]} 21... Kf6 {[%clk 0:02:23.8]} 22. Qxc7 {[%clk 0:01:40.8]}
22... Qxe7 {[%clk 0:02:23.3]} 0-1

[Event "Late-Titled-Tuesday-Blitz-January-16-2024"]
[Site "Chess.com"]
[Date "2024.01.16"]
[Round "3"]
[White "angelgab3"]
[Black "SHIVACalypso"]
[Result "1-0"]
[WhiteElo "2616"]
[BlackElo "2438"]
[TimeControl "180+1"]
[EndTime "14:23:25 PST"]
[Termination "angelgab3 won by resignation"]

1. e4 {[%clk 0:03:00.9]} 1... e6 {[%clk 0:02:56.2]} 2. d4 {[%clk 0:03:00.7]}
2... d5 {[%clk 0:02:55.6]} 3. Nc3 {[%clk 0:03:01.6]} 3... Nf6 {[%clk 0:02:55]}
4. Bg5 {[%clk 0:02:59.9]} 4... dxe4 {[%clk 0:02:54.7]} 5. Nxe4 {[%clk
0:03:00.8]} 5... Be7 {[%clk 0:02:54.5]} 6. Bxf6 {[%clk 0:03:00.4]} 6... gxf6
{[%clk 0:02:53.7]} 7. Nf3 {[%clk 0:03:00.6]} 7... f5 {[%clk 0:02:51.7]} 8. Nc3
{[%clk 0:03:01.1]} 8... Bf6 {[%clk 0:02:50]} 9. g3 {[%clk 0:02:57.6]} 9... Qd6
{[%clk 0:02:46.3]} 10. Qd2 {[%clk 0:02:50.1]} 10... a6 {[%clk 0:02:40]} 11. Bg2
{[%clk 0:02:47.5]} 11... Nd7 {[%clk 0:02:38]} 12. O-O-O {[%clk 0:02:46.9]} 12...
Nb6 {[%clk 0:02:38]} 13. Rhe1 {[%clk 0:02:45.8]} 13... Nd5 {[%clk 0:02:29.5]}
14. Ne5 {[%clk 0:02:11.1]} 14... Nxc3 {[%clk 0:02:18.2]} 15. Qxc3 {[%clk
0:02:12]} 15... Bxe5 {[%clk 0:02:15.6]} 16. dxe5 {[%clk 0:02:11]} 16... Qb6
{[%clk 0:02:16.1]} 17. Qd2 {[%clk 0:02:03]} 17... O-O {[%clk 0:02:12.6]} 18.
Qg5+ {[%clk 0:01:58.6]} 18... Kh8 {[%clk 0:02:12.8]} 19. Qf6+ {[%clk 0:01:59.5]}
19... Kg8 {[%clk 0:02:13]} 20. Qg5+ {[%clk 0:01:46.4]} 20... Kh8 {[%clk
0:02:12.9]} 21. Rd8 {[%clk 0:01:45.8]} 21... Rxd8 {[%clk 0:02:06.1]} 22. Qxd8+
{[%clk 0:01:46.7]} 22... Kg7 {[%clk 0:02:06.5]} 23. Qg5+ {[%clk 0:01:46.7]}
23... Kf8 {[%clk 0:02:00.2]} 24. Rd1 {[%clk 0:01:47.6]} 24... Bd7 {[%clk
0:02:00.2]} 25. Rxd7 {[%clk 0:01:45.9]} 1-0